{"text_format":"3","workbook":"xlsx","n_sheets":13,"sheets":["Mulai","Dasar-dasar","Pengenalan Fungsi-fungsi","AVERAGE","MIN & MAX","Tanggal & Waktu","Menggabungkan teks dan angka","Pernyataan IF","VLOOKUP","Fungsi Bersyarat","Panduan Fungsi","Kesalahan Rumus","Pelajari selengkapnya"],"not_rendered":{"images":32,"defined_names":21},"read":"whole","date_system":"1900"}

{"sheet":"Mulai","index":0,"n_rows":4,"n_cols":1,"rows_kept":4}
[]
["Mulai menggunakan rumus"]
["Hanya dalam beberapa langkah, Anda akan siap menyusun rumus dan fungsi di Excel, \naplikasi lembar bentang paling canggih di dunia."]
["Kembali ke atas dengan menekan CTRL+HOME. Untuk memulai tur, tekan CTRL+PAGE DOWN."]

{"sheet":"Dasar-dasar","index":1,"n_rows":43,"n_cols":10,"rows_kept":43}
["Dasar-dasar: melakukan penghitungan matematika dengan Excel"]
["Anda dapat Menambahkan, Mengurangi, Mengalikan, dan Membagi di Excel tanpa menggunakan fungsi bawaan apa pun. Anda hanya perlu menggunakan beberapa operator dasar: +, -, *, /. Semua rumus diawali dengan tanda sama dengan (=).\n",null,"Angka untuk digunakan:",null,"Operasi:","Rumus:","Jawaban:"]
["Untuk Menambahkan, pilih sel F3, ketikkan =C3+C4, lalu tekan Enter. \n",null,1,null,"Penambahan (+) ",null,{"$f":"C3+C4","v":3}]
["Untuk Mengurangi, pilih sel F4, ketikkan =C3-C4, lalu tekan Enter. ",null,2,null,"Pengurangan (-) ",null,{"$f":"C3-C4","v":-1}]
["Untuk Mengalikan, pilih sel F5, ketikkan =C3*C4, lalu tekan Enter.\n",{"$nulls":3},"Perkalian (*) ",null,{"$f":"C3*C4","v":2}]
["Untuk Membagi, pilih sel F6, ketikkan =C3/C4, lalu tekan Enter.\n",{"$nulls":3},"Pembagian (/) ",null,{"$f":"C3/C4","v":0.5}]
["Tinjau ini: ubah angka di sel C3 dan C4, dan hasil rumus akan berubah secara otomatis.",{"$nulls":3},"Pangkat (^) ",null,{"$f":"C3^C4","v":1}]
["LATIHAN TAMBAHAN: Anda dapat menerapkan pangkat dengan menggunakan simbol pangkat (^), seperti =A1^A2. Masukkan dengan menggunakan Shift+6. Di sel F7, masukkan =C3^C4."]
["Jelajahi ke bawah untuk detail selengkapnya"]
["Langkah berikutnya"]
["Selengkapnya tentang rumus, sel, dan rentang"]
["Excel terdiri dari sel-sel individual yang dikelompokkan ke dalam baris dan kolom. Baris ditandai dengan angka, dan kolom ditandai dengan huruf. Ada lebih dari 1 juta baris dan 16.000 kolom, dan Anda dapat menerapkan rumus di setiap baris dan kolom. \n"]
["Rumus dapat berisi referensi sel, referensi rentang sel, operator, dan konstanta. Berikut semua contoh rumus:\n\n=A1+B1\n=10+20\n=SUM(A1:A10)\n\n"]
["Anda akan melihat bahwa di contoh ketiga di atas, kami menggunakan fungsi SUM. Fungsi adalah perintah bawaan yang mengambil nilai atau nilai-nilai, menghitungnya dengan cara tertentu, dan mengembalikan hasil. Sebagai contoh, fungsi SUM mengambil semua referensi sel atau rentang yang ditentukan, lalu menjumlahkannya. Dalam contoh ini, fungsi mengambil sel A1 hingga A10, lalu menjumlahkannya. Excel memiliki lebih dari 400 fungsi, yang dapat Anda temukan di tab Rumus.\n"]
["Rumus dengan fungsi dimulai dengan tanda sama dengan, lalu diikuti nama fungsi beserta argumennya (nilai yang digunakan fungsi untuk menghitung) yang dicantumkan di dalam tanda kurung. \n"]
["Anda mengonfirmasi rumus dengan menekan Enter. Setelah Anda melakukannya, rumus akan menghitung dan hasil akan ditampilkan dalam sel. Untuk melihat rumus, Anda dapat melihatnya di bilah rumus di bawah Pita, atau tekan F2 untuk masuk ke mode Edit, tempat Anda dapat melihat rumus dalam sel. Tekan kembali Enter untuk menyelesaikan rumus dan menghitung hasil.\n\n"]
["Beberapa penjelasan rumus"]
["=10+20 adalah sebuah rumus, sementara 10 dan 20 adalah konstanta dan tanda + adalah operator."]
["=SUM(A1:A10) adalah sebuah rumus. SUM adalah nama fungsi, tanda kurung buka dan tutup berisi argumen rumus, dan A1:A10 adalah rentang sel untuk fungsi."]
[" =SUM(A1:A10;C1:C10) adalah sebuah rumus. SUM adalah nama fungsi, tanda kurung buka dan tutup berisi argumen rumus, dan A1:A10;C1:C10 adalah rentang sel untuk fungsi yang dipisahkan oleh tanda koma."]
["PERLU DIKETAHUI: Konstanta adalah nilai yang Anda masukkan dalam sel atau rumus. Meskipun =10+20 memberikan hasil yang sama seperti =A1+B1, konstanta bukanlah praktik yang baik. Mengapa? Karena Anda tidak dapat melihat konstanta dengan mudah tanpa memilih sel dan mencarinya. Hal tersebut dapat sulit diubah nanti. Sebaiknya, letakkan konstanta dalam sel, tempat konstanta dapat disesuaikan dengan mudah dan direferensikan dalam rumus Anda.\n\nContohnya: Pilih sel kuning yang berisi angka 12 di bawah. Anda akan melihat bahwa kami menggunakan fungsi SUM dengan rentang sel. Kami tidak mengetikkan \"4\" atau \"8\" secara langsung ke rumus. \n"]
["Sebelumnya"]
["Berikutnya"]
["Informasi selengkapnya di web"]
["Menggunakan Excel sebagai kalkulator"]
["Gambaran umum rumus di Excel"]
["Fungsi Excel (berdasarkan kategori) "]
["Fungsi Excel (sesuai abjad) "]
["Pelatihan online Excel gratis"]
{"$rows_empty":10}
[{"$nulls":9},"Nilai"]
[{"$nulls":9},4]
[{"$nulls":9},8]
[{"$nulls":9},{"$f":"SUM(J41:J42)","v":12}]

{"sheet":"Pengenalan Fungsi-fungsi","index":2,"n_rows":51,"n_cols":7,"rows_kept":51}
["Pengenalan fungsi-fungsi"]
["Fungsi memungkinkan Anda melakukan berbagai hal, seperti melakukan operasi matematika, mencari nilai, bahkan menghitung tanggal dan waktu. Mari kita coba beberapa cara untuk menambahkan nilai dengan fungsi SUM.",null,"Buah","Jumlah",null,"Daging","Jumlah"]
["Di bawah kolom Jumlah untuk Buah (sel D7), masukkan =SUM(D3:D6), atau ketikkan =SUM( lalu pilih rentang dengan mouse, dan tekan Enter. Tindakan ini akan menjumlahkan nilai dalam sel D3, D4, D5, dan D6. Jawabannya adalah 170.\n",null,"Apel",50,null,"Daging sapi",50]
["Sekarang, mari kita coba AutoSum. Pilih sel di bawah kolom untuk Daging (sel G7), lalu masuk ke Rumus > AutoSum > pilih Jumlah. Anda akan melihat Excel memasukkan rumus secara otomatis. Tekan Enter untuk mengonfirmasinya. Fitur AutoSum memiliki semua fungsi paling umum.\n",null,"Jeruk",20,null,"Ayam",30]
["Berikut pintasan keyboard yang efektif. Pilih sel D15, lalu tekan Alt =, kemudian Enter. Pintasan ini akan memasukkan SUM secara otomatis.",null,"Pisang",60,null,"Babi",10]
["Jelajahi ke bawah untuk detail selengkapnya",null,"Lemon",40,null,"Ikan",50]
["LATIHAN TAMBAHAN\nCobalah fungsi COUNT menggunakan salah satu metode yang telah Anda coba. Fungsi COUNT akan menghitung jumlah sel dalam rentang yang berisi angka.",null,"SUM > ",{"$f":"SUM(D3:D6)","v":170},null,"SUM > "]
["Langkah berikutnya"]
["Selengkapnya tentang fungsi",null,"Item","Jumlah",null,"Item","Jumlah"]
["Masuk ke tab Rumus dan telusuri Pustaka Fungsi, tempat fungsi dicantumkan berdasarkan kategori, seperti Teks, Tanggal & Waktu, dll. Sisipkan Fungsi memungkinkan Anda mencari fungsi berdasarkan nama dan meluncurkan panduan fungsi yang dapat membantu menyusun rumus. \n\nSaat Anda mulai mengetik nama fungsi setelah menekan =, Excel akan meluncurkan Intellisense, yang akan mencantumkan semua fungsi yang dimulai dengan huruf yang diketik. Saat Anda menemukan fungsi yang diinginkan, tekan Tab, dan Excel akan menyelesaikan nama fungsi dan memasukkan tanda kurung buka secara otomatis. Excel juga akan menampilkan argumen opsional dan yang diperlukan. \n\n\n\nSekarang, mari kita lihat anatomi beberapa fungsi. Fungsi SUM memiliki struktur seperti berikut:",null,"Roti",50,null,"Roti",50]
["Jika fungsi SUM dapat berbicara, fungsi ini akan berkata, kembalikan jumlah semua nilai di sel D35 hingga D38, dan semua kolom H. SUM adalah nama fungsi, D35:D38 adalah argumen rentang pertama, yang hampir selalu diperlukan, dan H:H adalah argumen rentang kedua, yang dipisahkan oleh tanda koma. Sekarang, mari kita coba fungsi yang tidak memerlukan argumen apa pun.\n",null,"Donat",100,null,"Donat",100]
["Fungsi TODAY mengembalikan tanggal hari ini. Hasilnya akan secara otomatis diperbarui saat Excel menghitung ulang.",null,"Kue kering",40,null,"Kue kering",40]
["TINJAU INI\nPilih sel-sel ini. Lalu, di sudut kanan bawah jendela Excel, cari SUM: 170 di bilah bagian bawah. Inilah yang disebut Bilah Status, dan bilah ini hanyalah cara lain untuk menemukan dengan cepat total dan detail lain tentang suatu sel atau rentang yang dipilih. ",null,"Kue keik",50,null,"Kue keik",50]
["DETAIL PENTING\nKlik ganda sel ini. Anda akan melihat angka 100 mendekati bagian akhir. Meskipun angka dapat dimasukkan dalam rumus seperti ini, kami tidak menyarankannya kecuali benar-benar diperlukan. Hal ini dikenal sebagai konstanta, dan kita mudah lupa bahwa konstanta itu ada. Sebaiknya Anda mengacu ke sel lain, seperti sel F51. Dengan demikian, konstanta akan mudah dilihat dan tidak tersembunyi dalam rumus. ",null,"Pai",20,null,"Pai",20]
["Informasi selengkapnya di web",null,"SUM > ",null,null,"COUNT >"]
["Semua tentang fungsi SUM"]
["Menggunakan AutoSum untuk menjumlah angka"]
["Semua tentang fungsi COUNT"]
["Pelatihan online Excel gratis"]
["Kembali ke atas"]
["Langkah berikutnya"]
{"$rows_empty":12}
[null,null,"Buah","Jumlah"]
[null,null,"Apel",50]
[null,null,"Jeruk",20]
[null,null,"Pisang",60]
[null,null,"Lemon",40]
[null,null,"SUM > ",{"$f":"SUM(D35:D38)","v":170}]
[]
[]
[]
[]
[null,null,"Item","Jumlah"]
[null,null,"Mobil",20]
[null,null,"Truk",10]
[null,null,"Sepeda",10]
[null,null,"Sepatu seluncur",40]
[]
[{"$nulls":3},"Total:",null,"Nilai Tambahan","Total Baru"]
[{"$nulls":3},{"$f":"SUM(D45:D48,100)","v":180},null,100,{"$f":"SUM(D45:D48,F51)","v":180}]

{"sheet":"AVERAGE","index":3,"n_rows":15,"n_cols":7,"rows_kept":15}
["Fungsi AVERAGE"]
["Gunakan fungsi AVERAGE untuk mendapatkan rata-rata angka dalam rentang sel.",null,"Buah","Jumlah",null,"Daging","Jumlah"]
["Pilih sel D7, lalu gunakan AutoSum untuk menambahkan fungsi AVERAGE.",null,"Apel",50,null,"Daging sapi",50]
["Sekarang, pilih sel G7, dan masukkan fungsi AVERAGE dengan mengetik =AVERAGE(G3:G6). ",null,"Jeruk",20,null,"Ayam",30]
["Di sel D15, Anda dapat menggunakan AutoSum atau mengetik untuk memasukkan fungsi AVERAGE lainnya. ",null,"Pisang",60,null,"Babi",10]
["TINJAU INI\nPilih rentang angka apa pun, lalu lihat di Bilah Status untuk mendapatkan Rata-rata secara langsung.\n",null,"Lemon",40,null,"Ikan",50]
["Membuka lembar sebelumnya",null,"AVERAGE >",null,null,"AVERAGE >"]
["Masuk ke lembar berikutnya"]
["LATIHAN TAMBAHAN\nCobalah menggunakan MEDIAN atau MODE di sini. \n\nMEDIAN memberikan nilai tengah dari kumpulan data, sementara \nMODE memberikan nilai yang paling sering muncul.\n",null,"Item","Jumlah",null,"Item","Jumlah"]
["Tautan untuk informasi selengkapnya di web",null,"Roti",50,null,"Roti",50]
["Pilih untuk mempelajari semua tentang fungsi AVERAGE di web",null,"Donat",100,null,"Donat",100]
["Pilih untuk mempelajari semua tentang fungsi MEDIAN di web",null,"Kue kering",40,null,"Kue kering",40]
["Pilih untuk mempelajari semua tentang fungsi MODE di web",null,"Kue keik",50,null,"Kue keik",50]
["Pilih untuk mempelajari tentang pelatihan Excel gratis di web",null,"Pai",20,null,"Pai",20]
[null,null,"AVERAGE >"]

{"sheet":"MIN & MAX","index":4,"n_rows":15,"n_cols":7,"rows_kept":15}
["Fungsi MIN dan MAX"]
["Gunakan fungsi MIN untuk mendapatkan angka minimum dalam suatu rentang sel.",null,"Buah","Jumlah",null,"Daging","Jumlah"]
["Gunakan fungsi MAX untuk mendapatkan angka maksimum dalam suatu rentang sel.",null,"Apel",50,null,"Daging sapi",50]
["Pilih sel D7, lalu gunakan Panduan AutoSum untuk menambahkan fungsi MIN.\n",null,"Jeruk",20,null,"Ayam",30]
["Sekarang, pilih sel G7, dan masukkan fungsi MAX dengan mengetik =MAX(G3:G6).\n",null,"Pisang",60,null,"Babi",10]
["Di sel D15, Anda dapat menggunakan Panduan AutoSum atau mengetik untuk memasukkan fungsi MIN atau MAX. \n",null,"Lemon",40,null,"Ikan",50]
["Informasi selengkapnya di web\n",null,"MIN >",null,null,"MAX >"]
["Semua tentang fungsi MIN"]
["Semua tentang fungsi MAX",null,"Item","Jumlah",null,"Item","Jumlah"]
["Pelatihan online Excel gratis",null,"Roti",50,null,"Roti",50]
["PERLU DIKETAHUI\nAnda dapat menggunakan MIN atau MAX dengan beberapa rentang atau nilai untuk memperlihatkan yang lebih besar atau yang lebih kecil dari nilai-nilai tersebut, seperti =MIN(A1:A10;B1:B10) atau =MAX(A1:A10;B1), dengan B1 berisi nilai ambang batas, seperti 10, yang dalam kasus ini rumus tidak akan mengembalikan nilai kurang dari 10.\n",null,"Donat",100,null,"Donat",100]
[null,null,"Kue kering",40,null,"Kue kering",40]
[null,null,"Kue keik",50,null,"Kue keik",50]
[null,null,"Pai",20,null,"Pai",20]
[null,null,"MIN atau MAX >",{"$nulls":3},{"$f":"MIN(G10:G14,10)","v":10}]

{"sheet":"Tanggal & Waktu","index":5,"n_rows":47,"n_cols":6,"rows_kept":47,"merged":[[4,2,4,3],[26,2,26,3],[30,2,30,3],[44,2,44,3]]}
["Fungsi Tanggal"]
["Excel dapat memberikan tanggal saat ini, berdasarkan pengaturan kawasan komputer. Anda juga dapat menambahkan dan mengurangi Tanggal."]
["Lihat fungsi TODAY yang memberi Anda tanggal Hari Ini. Ini adalah fungsi yang dinamis atau volatil, sehingga ketika Anda membuka buku kerja esok hari, tanggal akan berubah menjadi tanggal esok hari. Masukkan =TODAY() di sel D6. \n"]
["Mengurangi Tanggal - Masukkan tanggal ulang tahun Anda berikutnya dalam format DD/MM/YY di sel D7, dan Excel akan memberi tahu jumlah hari sebelum tanggal tersebut dengan menggunakan =D7-D6 di sel D8.\n"]
["Menambahkan Tanggal - Anggap saja Anda ingin mengetahui tanggal jatuh tempo sebuah tagihan atau tanggal Anda harus mengembalikan buku perpustakaan. Anda dapat menambahkan hari ke sebuah tanggal untuk mencari tahu. Di sel D10, masukkan jumlah hari sesuai keinginan. Di sel D11, kami menambahkan =D6+D10 untuk menghitung tanggal jatuh tempo dari hari ini.\n",null,"Fungsi Tanggal"]
["PERLU DIKETAHUI\nExcel mengatur tanggal dan waktu berdasarkan jumlah hari yang dimulai dari 1 Januari 1900. Waktu disimpan dalam bentuk pecahan dari sebuah hari berdasarkan menit. Oleh karena itu, 01/01/2017 12.30.00 disimpan sebagai 42736,5208. Jika Waktu atau Tanggal menunjukkan angka dalam format di atas, Anda dapat menekan Ctrl+1 > Angka > pilih format Tanggal atau Waktu. ",null,"Tanggal hari Ini:",null,null,{"$f":"IF(D6=TODAY(),\"Ini hasilnya!\",\"\")","v":""}]
["DETAIL PENTING\nJika tidak ingin Excel menampilkan angka negatif karena tanggal ulang tahun belum dimasukkan, Anda dapat menggunakan fungsi IF seperti ini: =IF(D7=\"\";\"\";D7-D6), yang berarti, \"Jika D7 sama dengan kosong, perlihatkan kosong, dan jika tidak, perlihatkan D7 dikurangi D6\".\n",null,"Tanggal ulang tahun Anda:"]
["Fungsi Waktu",null,"Jumlah hari hingga tanggal ulang tahun Anda:",{"$f":"D7-D6","v":0}]
["Excel dapat memberikan waktu saat ini, berdasarkan pengaturan kawasan komputer. Anda juga dapat menambahkan dan mengurangi waktu. Misalnya, Anda mungkin perlu mencatat jumlah jam kerja karyawan setiap minggunya, dan menghitung gaji serta lembur mereka.\n"]
["Di sel D28, masukkan =NOW(), yang akan memberikan waktu saat ini dan akan diperbarui setiap kali Excel menghitung. Jika perlu mengubah format Waktu, Anda dapat membuka Ctrl+1 > Angka > Waktu > Pilih format yang diinginkan.\n",null,"Masa tenggang:"]
["Menambahkan jam antar waktu - Di sel D36, kami telah memasukkan =((D35-D32)-(D34-D33))*24, yang menghitung jam masuk dan jam pulang kerja seseorang, lalu mengurangkan waktu makan siang mereka. *24 di bagian akhir rumus mengonversi bagian dari hari yang Excel anggap sebagai jam. Namun, Anda perlu memformat sel sebagai Angka. Untuk melakukannya, masuk ke Beranda > Format > Sel (Ctrl+1) > Angka > Angka > 2 desimal.\n\n",null,"Tagihan akan jatuh tempo pada:",{"$f":"D6+D10","v":"00:00:00"}]
["Jika dapat berbicara, rumus akan berkata, \"Kurangi Jam Selesai Kerja dengan Jam Mulai Kerja, lalu kurangi Jam Mulai Makan Siang dengan Jam Selesai Makan Siang, lalu kalikan dengan 24 untuk mengonversi waktu pecahan Excel menjadi jam\", atau =((Jam Selesai Kerja - Jam Mulai Kerja)-(Selesai Makan Siang - Mulai Makan Siang))*24."]
["Sebelumnya"]
["Berikutnya"]
["Informasi selengkapnya di web"]
["Semua tentang fungsi TODAY"]
["Semua tentang fungsi NOW"]
["Semua tentang fungsi DATE"]
["Pelatihan online Excel gratis"]
{"$rows_empty":7}
[null,null,"Fungsi Waktu"]
[null,null,"Waktu Saat Ini:"]
[]
[]
[null,null,"Jam Kerja Harian"]
[null,null,"Jam Mulai Kerja:","08:00:00"]
[null,null,"Mulai Makan Siang:","12:00:00"]
[null,null,"Selesai Makan Siang:","13:00:00"]
[null,null,"Jam Selesai Kerja:","17:00:00"]
[null,null,"Total Jam:",{"$f":"((D35-D32)-(D34-D33))*24","v":8.000000000000002}]
{"$rows_empty":8}
[null,null,"Tanggal dan Jam Statis"]
[null,null,"Tanggal:","2017-09-27"]
[null,null,"Waktu:","08:52:00"]

{"sheet":"Menggabungkan teks dan angka","index":6,"n_rows":37,"n_cols":6,"rows_kept":37,"merged":[[26,2,26,3],[30,2,30,3],[34,2,34,3]]}
["Menggabungkan teks dari sel lain"]
["Saat bekerja di Excel, Anda sering kali ingin menggabungkan teks yang ada di sel lain. Ini contoh yang sangat umum: Anda memiliki nama depan dan belakang dan ingin menggabungkannya sebagai nama depan, nama belakang, atau nama lengkap. Untungnya, Excel memungkinkan Anda melakukannya dengan simbol “dan” (&), yang dapat dimasukkan menggunakan Shift+7.\n",null,"Nama Depan","Nama Belakang","Nama Belakang, Nama Depan","Nama Lengkap"]
["Di sel E3, masukkan =D3&C3 untuk menggabungkan nama depan dan belakang. \n",null,"Nadia","Susilawati",{"$f":"D3&\", \"&C3","v":"Susilawati, Nadia"},{"$f":"C3&\" \"&D3","v":"Nadia Susilawati"}]
["SusilawatiNadia terlihat aneh. Kita perlu menambahkan tanda koma dan spasi. Untuk melakukannya, kita akan menggunakan tanda kutip untuk membuat string teks baru. Kali ini, masukkan =D3&\", \"&C3. Bagian &\", \"& memungkinkan kita menggabungkan tanda koma dan spasi dengan teks dalam sel.\n",null,"Andi","Nurcahyo"]
["Untuk membuat nama lengkap, kita akan menggabungkan nama depan dan belakang, tetapi menggunakan spasi tanpa tanda koma. Di F3, masukkan =C3&\" \"&D3.\n",null,"Jan","Krisna"]
["Jelajahi ke bawah untuk detail selengkapnya",null,"Maria","Jamilah"]
["Berikutnya",null,"Supardi","Triyono"]
["Menggunakan teks dan angka secara bersamaan",null,"Mursadi","Nugroho"]
["Sekarang, kita akan menggunakan simbol & untuk menggabungkan teks dan angka, tidak hanya teks dan teks\n\nLihat sel C28:D29. Lihat bagaimana tanggal dan waktu berada di sel yang terpisah? Anda dapat menggabungkannya dengan simbol & seperti yang dapat dilihat di sel C32:C33. Namun, hasilnya terlihat aneh, bukan? Sayangnya, Excel tidak mengetahui cara Anda ingin memformat angka, sehingga Excel akan menjabarkan angka ke format paling dasar, yaitu berupa tanggal Seri dalam hal ini. Kita perlu memberi tahu Excel dengan jelas tentang cara memformat bagian angka dari rumus tersebut, sehingga angka akan ditampilkan sesuai dengan keinginan Anda di string teks hasil. Anda dapat melakukannya dengan fungsi TEXT dan kode format.",null,"Riko","Zainuddin"]
["Di sel C36, masukkan =C28&\" \"&TEXT(D28,\"DD/MM/YYYY\"). DD/MM/YYYY adalah kode format Indonesia untuk Hari/Bulan/Tahun, seperti 25/09/2017.",null,"Yuliana","Marganingsih"]
["Di sel C37, masukkan =C29&\" \"&TEXT(D29,\"H.MM.SS\"). H.MM adalah kode format Indonesia untuk Jam:Menit,  seperti 1.30."]
["TINJAU INI\nRumus, terutama yang panjang, terkadang sulit dibaca. Namun, Anda dapat memisahkan bagiannya dengan spasi seperti ini:\n\n=C28 & \" \" & TEXT(D28,\"DD/MM/YYYY\")"]
["PERLU DICOBA\nJika tidak mengetahui kode format yang akan digunakan, Anda dapat menggunakan Ctrl+1 > Angka untuk memformat sel sesuai keinginan. Lalu, pilih opsi Suai. Anda dapat menyalin kembali kode format yang ditampilkan pada rumus."]
["Informasi selengkapnya di web"]
["Semua tentang fungsi TEXT"]
["Menggabungkan teks dan angka"]
["Pelatihan online Excel gratis"]
{"$rows_empty":9}
[null,null,"Menggunakan teks & angka"]
[null,null,"Tanggal hari Ini:",{"$f":"TODAY()","v":"2019-10-10"}]
[null,null,"Waktu saat ini:",{"$f":"NOW()","v":43748.54019733796}]
[]
[null,null,"Menggabungkan teks & angka"]
[null,null,{"$f":"C28&\" \"&D28","v":"Tanggal hari Ini: 43748"}]
[null,null,{"$f":"C29&\" \"&D29","v":"Waktu saat ini: 43748,540197338"}]
[]
[null,null,"Memformat teks & angka"]
[null,null,{"$f":"C28 &\" \"& TEXT(D28,\"DD/MM/YYYY\")","v":"Tanggal hari Ini: 10/10/2019"}]
[null,null,{"$f":"C29&\" \"&TEXT(D29,\"H.MM.SS\")","v":"Waktu saat ini: 12.57.53"}]

{"sheet":"Pernyataan IF","index":7,"n_rows":37,"n_cols":6,"rows_kept":37,"merged":[[7,2,7,3]]}
["Pernyataan IF"]
["Pernyataan IF memungkinkan Anda untuk membuat perbandingan logis antar kondisi. Pernyataan IF secara umum berarti: jika sebuah kondisi benar, lakukan suatu hal, dan bila kondisi salah, lakukan hal lain. Rumus dapat mengembalikan teks, nilai, bahkan penghitungan lainnya."]
["Di sel D9, masukkan =IF(C9=\"Apel\";TRUE;FALSE). Jawaban yang benar adalah TRUE. \n"]
["Salin D9 ke D10. Jawaban di sini akan berupa FALSE karena jeruk bukan apel.\n"]
["Cobalah contoh lain dengan mengacu pada rumus di sel D12. Kami memulainya dengan =IF(C12<100;\"Kurang dari 100\";\"Lebih dari atau sama dengan 100\"). Apa yang akan terjadi jika Anda memasukkan angka yang lebih besar dari 100 di sel C12?\n"]
["DETAIL PENTING\nTRUE dan FALSE tidak seperti kata-kata lain dalam rumus Excel karena kata-kata ini tidak perlu ditulis dalam tanda kutip, dan Excel akan menulisnya dalam huruf besar secara otomatis. Angka juga tidak perlu ditulis dalam tanda kutip. Teks biasa, seperti Ya atau Tidak perlu ditulis dalam tanda kutip seperti ini: \n=IF(C9=\"Apel\";\"Ya\";\"Tidak\")"]
["Gulir ke bawah untuk detail selengkapnya"]
["Berikutnya",null,"Pernyataan IF"]
["Pernyataan IF dengan fungsi lain",null,"Apel"]
["Pernyataan IF juga dapat menjalankan penghitungan tambahan jika kondisi tertentu terpenuhi. Di sini, kita akan mengevaluasi sel untuk mengetahui apakah Pajak Penjualan harus dibebankan, dan menghitungnya jika kondisi tersebut benar.\n",null,"Jeruk"]
["Di sel F33, kami telah memasukkan  =IF(E33=\"Ya\";F31*PajakPenjualan;0). Kami juga telah menetapkan PajakPenjualan sebagai Rentang Bernama dengan nilai sebesar 0,0825. Rumus kami berarti: Jika sel E33 sama dengan Ya, kalikan sel F31 dengan PajakPenjualan, dan jika tidak, kembalikan 0.\n\nCobalah mengubah Ya ke Tidak di sel E33 untuk melihat perubahan penghitungan."]
["Berikutnya, kami telah menambahkan pernyataan IF untuk menghitung pengiriman jika diperlukan. Di sel F35, Anda akan melihat  =IF(E35=\"Ya\";SUM(D28:D29)*1,25;0). Rumus ini berarti: \"Jika sel E35 adalah Ya, ambil jumlah dari kolom Kuantitas dalam tabel di atas, lalu kalikan dengan 1,25, dan jika tidak, kembalikan 0\".\n",null,50,{"$f":"IF(C12<100,\"Kurang dari 100\",\"Lebih dari atau sama dengan 100\")","v":"Kurang dari 100"}]
["Berikutnya, ubah 1,25 dalam rumus di sel F35 ke \"Pengiriman\". Saat mulai mengetik, koreksi otomatis Excel akan menemukannya untuk Anda. Saat hal ini terjadi, tekan Tab untuk memasukkannya. Ini adalah Rentang Bernama, dan kami memasukkannya dari Rumus > Tentukan Nama. Kini, jika perlu mengubah biaya pengiriman, Anda hanya perlu melakukannya di satu tempat dan dapat menggunakan nama Pengiriman di mana pun dalam buku kerja.\n\n"]
["PERLU DIKETAHUI\nKetika Anda membuat rumus, Excel akan secara otomatis menempatkan batas berwarna di sekitar rentang yang direferensikan dalam rumus, dan rentang yang terkait dalam rumus tersebut akan memiliki warna yang sama. Anda dapat melihatnya jika memilih sel F33, lalu menekan F2 untuk mengedit rumus."]
["TIPS AHLI\nRentang Bernama memungkinkan Anda untuk menentukan syarat atau nilai di satu tempat, lalu menggunakannya kembali di seluruh buku kerja. Anda dapat melihat semua rentang bernama dalam buku kerja ini dengan masuk ke Rumus > Pengelola Nama. Klik di sini untuk mempelajari selengkapnya.\n"]
["Sebelumnya"]
["Berikutnya"]
["Informasi selengkapnya di web"]
["Semua tentang fungsi IF"]
["Semua tentang fungsi IFS"]
["Pernyataan IF tingkat lanjut"]
["Pelatihan online Excel gratis"]
[]
[]
[]
[]
[null,null,"Item","Jumlah","Biaya","Total"]
[null,null,"Barang A",2,{"v":9.760711585683554,"d":"Rp9.76"},{"$f":"'Pernyataan IF'!$E$28:$E$29*'Pernyataan IF'!$D$28:$D$29","v":{"v":19.521423171367108,"d":"Rp19.52"}}]
[null,null,"Barang B",3,{"v":3.4189202461080024,"d":"Rp3.42"},{"$f":"'Pernyataan IF'!$E$28:$E$29*'Pernyataan IF'!$D$28:$D$29","v":{"v":10.256760738324008,"d":"Rp10.26"}}]
[]
[{"$nulls":3},"Sub-Total",{"$f":"SUM('Pernyataan IF'!$E$28:$E$29)","v":{"v":13.179631831791557,"d":"Rp13.18"}},{"$f":"SUM('Pernyataan IF'!F28:F29)","v":{"v":29.778183909691116,"d":"Rp29.78"}}]
[]
[{"$nulls":3},"Pajak Penjualan?","Ya",{"$f":"IF(E33=\"Ya\",F31*PajakPenjualan,0)","v":{"v":2.456700172549517,"d":"Rp2.46"}}]
[]
[{"$nulls":3},"Pengiriman?","Ya",{"$f":"IF(E35=\"Ya\",SUM(D28:D29)*1.25,0)","v":{"v":6.25,"d":"Rp6.25"}}]
[]
[{"$nulls":3},"Total",null,{"$f":"SUM(F33,F31,F35)","v":{"v":38.48488408224063,"d":"Rp38.48"}}]

{"sheet":"VLOOKUP","index":8,"n_rows":43,"n_cols":7,"rows_kept":43}
["VLOOKUP"]
["VLOOKUP adalah salah satu fungsi yang paling sering digunakan di Excel (dan salah satu favorit kami juga!). VLOOKUP memungkinkan Anda mencari nilai dalam kolom di sebelah kiri, lalu mengembalikan informasi di kolom lain di sebelah kanan jika kecocokan ditemukan. VLOOKUP dibaca:\n"]
[{"$f":"VLOOKUP(A1,B:C,2,FALSE)","v":{"$error":"#N/A"}}]
["Apa yang ingin Anda cari?"]
["Jika menemukannya, berapa banyak kolom di sebelah kanan yang akan dicantumkan nilai?"]
["Di mana Anda ingin mencarinya?"]
["Apakah Anda menginginkan kecocokan yang sama atau hasil yang mendekati?"]
["Di sel D22, masukkan =VLOOKUP(C22;C17:D20;2;FALSE). Jawaban yang benar untuk Apel adalah 50. VLOOKUP mencari Apel, menemukannya, lalu berpindah satu kolom di sebelah kanan, dan mengembalikan jumlah.\n\n"]
["Sekarang, cobalah di bagian Daging, di sel G22. Rumus yang digunakan akan berupa =VLOOKUP(F22;F17:G20;2;FALSE).\n\n"]
["PERCOBAAN\nCobalah memilih item yang berbeda dari daftar menurun. Anda akan melihat sel hasil langsung diperbarui dengan nilai baru."]
["Jelajahi ke bawah untuk detail selengkapnya"]
["Berikutnya"]
["VLOOKUP dan #N/A"]
["Anda akan selalu menemui situasi ketika VLOOKUP tidak dapat menemukan yang dicari, dan mengembalikan kesalahan (#N/A). Terkadang, hal ini terjadi karena nilai pencarian tidak ada atau karena sel referensi belum memiliki nilai.\n"]
["Jika mengetahui bahwa nilai pencarian ada tetapi ingin menyembunyikan kesalahan apabila sel pencarian kosong, Anda dapat menggunakan pernyataan IF. Dalam hal ini, kami akan mencantumkan rumus VLOOKUP yang sudah ada dengan cara seperti ini dalam sel D43:\n\n=IF(C43=\"\";\"\";VLOOKUP(C43;C37:D41;2;FALSE))\n\nRumus ini dibaca jika sel C43 sama dengan kosong (\"\"), kembalikan kosong, dan jika tidak, kembalikan hasil VLOOKUP. Perhatikan tanda kurung tutup kedua di bagian akhir rumus. Tanda ini menutup pernyataan IF.\n"]
["Jika tidak yakin bahwa nilai pencarian ada tetapi tetap ingin menyembunyikan kesalahan #N/A, Anda dapat menggunakan sebuah fungsi untuk menangani kesalahan yang disebut IFERROR di sel G43: =IFERROR(VLOOKUP(F43;F37:G41;2;FALSE);\"\"). IFERROR dibaca: jika VLOOKUP mengembalikan hasil valid, tampilkan hasil tersebut, dan jika tidak, tampilkan kosong (\"\"). Kami menampilkan kosong di sini (\"\"), tetapi Anda juga dapat menggunakan angka (0,1, 2, dst.) atau teks, seperti \"Rumus salah\".\n",null,"Buah","Jumlah",null,"Daging","Jumlah"]
["DETAIL PENTING\nIFERROR dikenal sebagai penutup kesalahan, yang berarti fungsi ini akan menyembunyikan kesalahan apa pun yang dihasilkan oleh rumus. Hal ini dapat menyebabkan masalah jika Excel memberikan pemberitahuan bahwa rumus Anda memiliki kesalahan yang perlu diperbaiki.\n\nSebaiknya, jangan menambahkan penangan kesalahan ke rumus hingga Anda benar-benar yakin bahwa rumus bekerja dengan tepat.",null,"Apel",50,null,"Daging sapi",50]
["Sebelumnya",null,"Jeruk",20,null,"Ayam",30]
["Berikutnya",null,"Pisang",60,null,"Babi",10]
["Informasi selengkapnya di web",null,"Lemon",40,null,"Ikan",50]
["Semua tentang fungsi VLOOKUP"]
["Semua tentang fungsi INDEX/MATCH",null,"Apel",null,null,"Babi"]
["Semua tentang fungsi IFERROR"]
["Menggunakan PivotTable untuk menganalisis data lembar kerja"]
["Pelatihan online Excel gratis"]
{"$rows_empty":9}
[null,null,"Jika fungsi SUM dalam sel D42 dapat berbicara, fungsi tersebut akan berkata: Jumlahkan nilai dalam sel D38, D39, D40, dan D41."]
[null,null,"Item","Jumlah",null,"Item","Jumlah"]
[null,null,"Roti",50,null,"Roti",50]
[null,null,"Donat",100,null,"Donat",100]
[null,null,"Kue kering",40,null,"Kue kering",40]
[null,null,"Kue keik",50,null,"Kue keik",50]
[null,null,"Pai",20,null,"Pai",20]
[]
[{"$nulls":3},{"$f":"VLOOKUP(C43,C37:D41,2,FALSE)","v":{"$error":"#N/A"}},null,"Kue",{"$f":"IFERROR(VLOOKUP(F43,F37:G41,2,FALSE),\"\")","v":""}]

{"sheet":"Fungsi Bersyarat","index":9,"n_rows":123,"n_cols":34,"rows_kept":123}
["Fungsi Bersyarat - SUMIF"]
["Fungsi bersyarat memungkinkan Anda menjumlahkan, menghitung rata-rata, menghitung, atau mendapatkan nilai min dan maks dari sebuah rentang berdasarkan kondisi tertentu atau kriteria yang ditentukan. Seperti, dari semua buah dalam daftar, berapa jumlah buah apel? Atau, ada berapa banyak jeruk jenis Florida?",null,"Buah","Jumlah",null,"Buah","Jenis","Jumlah",{"$nulls":17},"Buah",null,"Apel",null,"Jeruk",null,"Pisang",null,"Lemon"]
["SUMIF memungkinkan Anda menjumlahkan dalam satu rentang berdasarkan kriteria tertentu yang dicari dalam rentang lain, seperti jumlah Apel yang dimiliki. Pilih sel D17, lalu ketikkan =SUMIF(C3:C14;C17;D3:D14). SUMIF memiliki struktur seperti ini:",null,"Apel",50,null,"Apel","Fuji",50,{"$nulls":17},"Apel",null,"Fuji",null,"Florida",null,"Cavendish",null,"Rough"]
[{"$f":"SUMIF(C3:C14,C17,D3:D14)","v":150},null,"Jeruk",20,null,"Jeruk","Florida",20,{"$nulls":17},"Jeruk",null,"Honeycrisp",null,"Navel",null,"Lady Finger",null,"Eureka"]
["Rentang apa yang ingin Anda lihat?",null,"Pisang",60,null,"Pisang","Cavendish",60,{"$nulls":17},"Pisang"]
["Nilai (teks atau angka) apa yang ingin Anda cari?",null,"Lemon",40,null,"Lemon","Rough",40,{"$nulls":17},"Lemon"]
["Untuk setiap kecocokan yang ditemukan, rentang apa yang ingin Anda jumlahkan?",null,"Apel",50,null,"Apel","Honeycrisp",50]
["SUMIFS sama seperti SUMIF, tetapi fungsi ini memungkinkan Anda menggunakan beberapa kriteria. Dalam contoh ini, Anda dapat mencari Buah dan Jenis, bukan hanya berdasarkan Buah. Pilih sel H17, lalu ketikkan =SUMIFS(H3:H14;F3:F14;F17;G3:G14;G17). SUMIFS memiliki struktur seperti ini:\n",null,"Jeruk",20,null,"Jeruk","Navel",20]
[{"$f":"SUMIFS(H3:H14,F3:F14,F17,G3:G14,G17)","v":20},null,"Pisang",60,null,"Pisang","Lady Finger",60]
["Rentang apa yang ingin Anda jumlahkan?",null,"Lemon",40,null,"Lemon","Eureka",40]
["Ini adalah rentang pertama untuk mencari kecocokan",null,"Apel",50,null,"Apel","Honeycrisp",50]
["Ini adalah kriteria untuk kecocokan pertama",null,"Jeruk",20,null,"Jeruk","Navel",20]
["Ini adalah rentang kedua untuk mencari kecocokan",null,"Pisang",60,null,"Pisang","Cavendish",60]
["Ini adalah kriteria untuk kecocokan kedua",null,"Lemon",40,null,"Lemon","Eureka",40]
["TIPS AHLI\nSetiap sel Buah dan Jenis memiliki daftar menurun tempat Anda dapat memilih buah-buahan yang berbeda. Cobalah, dan rumus akan diperbarui secara otomatis."]
["Jelajahi ke bawah untuk detail selengkapnya",null,"Buah","SUMIF",null,"Buah","Jenis","SUMIFS"]
["Langkah berikutnya",null,"Apel",null,null,"Jeruk","Florida"]
["Fungsi Bersyarat - COUNTIF"]
["COUNTIF dan COUNTIFS memungkinkan Anda menghitung nilai dalam rentang berdasarkan kriteria tertentu. Fungsi ini sedikit berbeda dari fungsi IF dan IFS lainnya karena hanya memiliki rentang kriteria dan kriteria. Fungsi tersebut tidak mengevaluasi satu rentang, lalu melihat rentang lain untuk meringkas."]
["Pilih sel D64, lalu ketikkan =COUNTIF(C50:C61;C64). COUNTIF memiliki struktur seperti berikut:"]
[{"$f":"COUNTIF(C50:C61,C64)","v":3}]
["Rentang apa yang ingin Anda lihat?"]
["Nilai (teks atau angka) apa yang ingin Anda cari?"]
["COUNTIFS sama seperti SUMIF, tetapi fungsi ini memungkinkan Anda menggunakan beberapa kriteria. Dalam contoh ini, Anda dapat mencari Buah dan Jenis, bukan hanya berdasarkan Buah. Pilih sel H64, lalu ketikkan =COUNTIFS(F50:F61;F64;G50:G61;G64). COUNTIFS memiliki struktur seperti berikut:\n"]
[{"$f":"COUNTIFS(F50:F61,F64,G50:G61,G64)","v":1}]
["Ini adalah rentang pertama untuk dihitung"]
["Ini adalah kriteria untuk kecocokan pertama"]
["Ini adalah rentang kedua untuk dihitung"]
["Ini adalah kriteria untuk kecocokan kedua"]
["Jelajahi ke bawah untuk detail selengkapnya"]
["Berikutnya"]
["Fungsi bersyarat lainnya"]
["Anda telah melihat SUMIF, SUMIFS, COUNTIF, dan COUNTIFS. Sekarang, Anda dapat mencoba fungsi lain, seperti AVERAGEIF/S, MAXIFS, MINIFS. Semua fungsi tersebut memiliki struktur yang sama, maka setelah menulis satu rumus, Anda cukup mengganti nama fungsi dengan fungsi yang diinginkan. Kami telah menulis semua fungsi yang diperlukan untuk sel E106, sehingga Anda dapat menyalin/menempelkan fungsi ini atau mencoba mengetiknya sendiri untuk praktik.\n\nSUMIF \t=SUMIF(C92:C103;C106;E92:E103) \nSUMIFS \t=SUMIFS(E92:E103;C92:C103;C106;D92:D103;D106) \nAVERAGEIF \t=AVERAGEIF(C92:C103;C106;E92:E103) \nAVERAGEIFS\t=AVERAGEIFS(E92:E103;C92:C103;C106;D92:D103;D106)\nCOUNTIF \t=COUNTIF(C92:C103;C106)\nCOUNTIFS \t=COUNTIFS(C92:C103;C106;D92:D103;D106) \nMAXIFS \t=MAXIFS(E92:E103;C92:C103;C106;D92:D103;D106)\nMINIFS \t=MINIFS(E92:E103;C92:C103;C106;D92:D103;D106)"]
["Jelajahi ke bawah untuk detail selengkapnya"]
["Berikutnya"]
["SUMIF dengan argumen nilai"]
["Berikut contoh fungsi SUMIF menggunakan tanda lebih besar daripada (>) untuk menemukan nilai yang lebih besar daripada jumlah tertentu:"]
[{"$f":"SUMIF(D118:D122,\">=50\")","v":200}]
["Jumlahkan beberapa nilai berdasarkan kriteria ini:"]
["...Telusuri sel-sel ini…\n "]
["…dan jika nilainya lebih besar dari 50, jumlahkan.\n "]
["CATATAN: Jika menggunakan banyak sekali rumus bersyarat, PivotTable adalah solusi yang lebih baik. Lihat artikel PivotTable ini untuk informasi selengkapnya."]
["Informasi selengkapnya di web"]
["Semua tentang fungsi SUMIF"]
["Semua tentang fungsi SUMIFS"]
["Semua tentang fungsi COUNTIF"]
["Semua tentang fungsi COUNTIFS"]
["Semua tentang fungsi AVERAGEIF"]
["Semua tentang fungsi AVERAGEIFS",null,"Buah","Jumlah",null,"Buah","Jenis","Jumlah"]
["Semua tentang fungsi MINIFS",null,"Apel",50,null,"Apel","Fuji",50]
["Semua tentang fungsi MAXIFS",null,"Jeruk",20,null,"Jeruk","Florida",20]
["Membuat daftar menurun",null,"Pisang",60,null,"Pisang","Cavendish",60]
["Pelatihan online Excel gratis",null,"Lemon",40,null,"Lemon","Rough",40]
["Kembali ke atas",null,"Apel",50,null,"Apel","Honeycrisp",50]
["Berikutnya",null,"Jeruk",20,null,"Jeruk","Navel",20]
[null,null,"Pisang",60,null,"Pisang","Lady Finger",60]
[null,null,"Lemon",40,null,"Lemon","Eureka",40]
[null,null,"Apel",50,null,"Apel","Honeycrisp",50]
[null,null,"Jeruk",20,null,"Jeruk","Navel",20]
[null,null,"Pisang",60,null,"Pisang","Cavendish",60]
[null,null,"Lemon",40,null,"Lemon","Eureka",40]
[]
[null,null,"Buah","COUNTIF",null,"Buah","Jenis","COUNTIFS"]
[null,null,"Apel",{"$f":"COUNTIF(C50:C61,C64)","v":3},null,"Jeruk","Florida",{"$f":"COUNTIFS(F50:F61,F64,G50:G61,G64)","v":1}]
{"$rows_empty":26}
[null,null,"Buah","Jenis","Jumlah"]
[null,null,"Apel","Fuji",50]
[null,null,"Jeruk","Florida",20]
[null,null,"Pisang","Cavendish",60]
[null,null,"Lemon","Rough",40]
[null,null,"Apel","Honeycrisp",50]
[null,null,"Jeruk","Navel",20]
[null,null,"Pisang","Lady Finger",60]
[null,null,"Lemon","Eureka",40]
[null,null,"Apel","Honeycrisp",50]
[null,null,"Jeruk","Navel",20]
[null,null,"Pisang","Cavendish",60]
[null,null,"Lemon","Eureka",40]
[]
[null,null,"Buah","Jenis","Cobalah"]
[null,null,"Lemon","Eureka",{"$f":"AVERAGEIFS(E92:E103,C92:C103,C106,D92:D103,D106)","v":40}]
{"$rows_empty":10}
[null,null,"Item","Jumlah"]
[null,null,"Roti",50]
[null,null,"Donat",100]
[null,null,"Kue kering",40]
[null,null,"Kue keik",50]
[null,null,"Pai",20]
[{"$nulls":3},{"$f":"SUMIF(D118:D122,\">=50\")","v":200}]

{"sheet":"Panduan Fungsi","index":10,"n_rows":14,"n_cols":4,"rows_kept":14}
["Pemandu Fungsi akan memandu Anda"]
["Jika mengetahui nama fungsi yang diinginkan tetapi tidak yakin cara menyusunnya, gunakan Panduan Fungsi untuk membantu Anda.\n"]
["Pilih sel D10, masuk ke Rumus > Sisipkan Fungsi > ketikkan VLOOKUP dalam kotak Cari fungsi, kemudian tekan Cari. Ketika Anda melihat VLOOKUP disorot, klik OK di bagian bawah. Saat Anda memilih fungsi dalam daftar, Excel akan menampilkan sintaksnya.\n"]
["Berikutnya, masukkan argumen fungsi di masing-masing kotak teks. Saat Anda memasukkan setiap argumen fungsi, Excel akan mengevaluasinya dan memperlihatkan hasilnya, dengan hasil akhir di bagian bawah. Saat Anda memasukkan setiap bagian, kriteria untuk setiap argumen dicantumkan di bagian bawah formulir. Tekan OK jika sudah selesai, dan Excel akan memasukkan rumus secara otomatis.\n\n\n",null,"Buah","Jumlah"]
["TINJAU INI\nRumus yang digunakan akan berupa =VLOOKUP(C10;C5:D8;2;FALSE)",null,"Apel",50]
["PERLU DIKETAHUI\nAnda dapat mengetikkan referensi sel dan rentang atau memilihnya dengan mouse.",null,"Jeruk",20]
["PERLU DIKETAHUI\nSaat Anda memasukkan setiap bagian argumen, deskripsi argumen akan ditampilkan di bagian bawah formulir, di atas hasil Rumus.\n",null,"Pisang",60]
["Sebelumnya",null,"Lemon",40]
["Berikutnya"]
["Informasi selengkapnya di web",null,"Apel",{"$f":"VLOOKUP(C10,C5:D8,2,FALSE)","v":50}]
["Gambaran umum rumus di Excel"]
["Fungsi Excel (berdasarkan kategori)"]
["Fungsi Excel (sesuai abjad)"]
["Pelatihan online Excel gratis"]

{"sheet":"Kesalahan Rumus","index":11,"n_rows":36,"n_cols":4,"rows_kept":36}
["Memperbaiki kesalahan rumus"]
["Pada saat tertentu, Anda akan menemui rumus yang memiliki kesalahan, yang akan ditampilkan sebagai #ErrorName oleh Excel. Kesalahan dapat bermanfaat karena menunjukkan bahwa sesuatu tidak berjalan dengan benar. Namun, kesalahan dapat sulit untuk diperbaiki. Untungnya, ada beberapa opsi yang dapat membantu Anda menemukan sumber kesalahan dan memperbaikinya.\n"]
["Pemeriksaan kesalahan - Masuk ke Rumus > Pemeriksaan Kesalahan. Tindakan ini akan memuat dialog yang akan memberi tahu Anda penyebab umum kesalahan tertentu. Di sel D9, kesalahan #N/A terjadi karena tidak ada nilai yang cocok dengan \"Apel\". Anda dapat memperbaikinya dengan menggunakan nilai yang ada, menghilangkan kesalahan dengan IFERROR, atau mengabaikannya dan tahu bahwa kesalahan tersebut tidak akan terjadi saat Anda menggunakan nilai yang ada.\n",null,"Buah","Jumlah"]
["Jika Anda mengklik Bantuan untuk Kesalahan ini, topik bantuan khusus untuk pesan kesalahan tersebut akan terbuka. Jika Anda mengklik Tampilkan Tahap Penghitungan, dialog Evaluasi Rumus akan dimuat.\n",null,"Apel",50]
["Setiap kali Anda mengklik Evaluasi, Excel akan menelusuri bagian rumus satu per satu. Tindakan ini tidak akan memberi tahu mengapa kesalahan terjadi, tetapi akan menunjukkan letaknya. Dari sana, lihat topik bantuan untuk menyimpulkan apa yang salah dengan rumus Anda.\n",null,"Jeruk",20]
["PERCOBAAN\nApa yang salah di sini? Petunjuk: Kami mencoba menggunakan SUM untuk menjumlahkan semua item.",null,"Pisang",60]
["PERLU DIKETAHUI\nMengklik Opsi memungkinkan Anda menetapkan aturan ketika kesalahan di Excel ditampilkan atau diabaikan.\n",null,"Lemon",40]
["Sebelumnya"]
["Berikutnya",null,"Apel1",{"$f":"VLOOKUP(C9,C3:D7,2,FALSE)","v":{"$error":"#N/A"}}]
["Informasi selengkapnya di web"]
["Mendeteksi kesalahan dalam rumus"]
["Cara menghindari kesalahan rumus"]
["Mengevaluasi rumus bertumpuk satu demi satu"]
["Pelatihan online Excel gratis"]
{"$rows_empty":15}
[null,null,"Buah","Jumlah"]
[null,null,"Apel",50]
[null,null,"Jeruk",20]
[null,null,"Pisang",60]
[null,null,"Lemon",40]
[]
[null,null,"Total",{"$f":"sume(D31:D34)","v":{"$error":"#NAME?"}}]

{"sheet":"Pelajari selengkapnya","index":12,"n_rows":5,"n_cols":1,"rows_kept":5}
["Memiliki pertanyaan lain tentang Excel?"]
["Tekan ALT+Q dan ketikkan hal yang ingin Anda ketahui."]
["Lanjutkan. Ada lebih banyak lagi yang dapat dipelajari dengan Excel:"]
["Komunitas: Ajukan pertanyaan dan terhubunglah dengan penggemar Excel lainnya.\n"]
["Apa lagi yang baru?\nPelanggan Office 365 mendapatkan pembaruan berkelanjutan dan fitur baru.\n\n"]